Cogmind - Beta 17 @@@ ROGUE MODE // 2026.07.15 @ 13:28:19 Player: pinbox Result: Destroyed by Autobeam Turret with Autobeam Performance ------------- Evolutions (0) 0 Regions Visited (2) 400 Robots Destroyed (16) 80 Value Destroyed (446) 446 Prototype IDs (14) 280 Alien Tech Used (0) 0 Bonus (0) 0 TOTAL SCORE: 1206 Bonus ------- None Cogmind --------- Core Integrity 0/250 Matter 290/300 Energy 241/250 System Corruption 0% Temperature Cool (6) Movement Rolling (110) Location -10/Subcaves Parts ------- > --- POWER (1) -------- Ion Engine > --- PROPULSION (2) --- Subdweller Monowheel Subdweller Monowheel > --- UTILITY (2) ------ Large Storage Unit Seismic Detector > --- WEAPON (2) ------- Subdweller Beam Cannon Grenade Launcher > --- INVENTORY (15) --- Subdweller Power Source Subdweller Power Source Subdweller Power Source Light Treads Subdweller Monowheel Subdweller Optics Subdweller Optics Scrap Shield Subdweller Laser Subdweller Laser Subdweller Beam Cannon Subdweller Machine Gun Peak State ------------ > --- POWER ------------ Subdweller Power Source > --- PROPULSION ------- Light Treads Spiked Treads > --- UTILITY ---------- Large Storage Unit > --- WEAPON ----------- Powered Cannon > --- INVENTORY -------- Ion Engine Light Treads Subdweller Monowheel Seismic Detector Subdweller Laser Subdweller Beam Cannon Grenade Launcher [Rating: 21] Favorites ----------- Power Ion Engine Engine Ion Engine Propulsion Light Treads Treads Light Treads Wheel Subdweller Monowheel Utility Seismic Detector Device Seismic Detector Storage Large Storage Unit Weapon Subdweller Beam Cannon Energy Gun Small Laser Energy Cannon Subdweller Beam Cannon Ballistic Gun Subdweller Machine Gun Launcher Grenade Launcher Build | -11 -10 -10 ------- Run | Yrd Mat Sub Slots Evolved . | . . . Power . | . . . Propulsion . | . . . Utility . | . . . Weapon . | . . . Parts Attached 21 | 7 2 12 Power 3 | 1 . 2 Engine 3 | 1 . 2 Core . | . . . Reactor . | . . . Propulsion 5 | 2 . 3 Treads 3 | 2 . 1 Leg . | . . . Wheel 2 | . . 2 Hover . | . . . Flight . | . . . Utility 5 | 2 2 1 Device 2 | 1 . 1 Storage 3 | 1 2 . Processor . | . . . Hackware . | . . . Protection . | . . . Artifact . | . . . Weapon 8 | 2 . 6 Energy Gun 3 | 2 . 1 Energy Cannon 3 | . . 3 Ballistic Gun 1 | . . 1 Ballistic Cannon . | . . . Launcher 1 | . . 1 Special Weapon . | . . . Impact Weapon . | . . . Slashing Weapon . | . . . Piercing Weapon . | . . . Special Melee Weapon . | . . . Unidentified Prototypes . | . . . Parts Lost 4 | . . 4 Power . | . . . Propulsion 2 | . . 2 Utility 1 | . . 1 Weapon 1 | . . 1 Highest Loss Streak 1 | . . 1 To Critical Strikes . | . . . Average Backups 6 | . 1 7 Power 1 | . 1 1 Propulsion 1 | . . 1 Utility 1 | . . 1 Weapon 2 | . . 2 Tool/Special . | . . . Unused Backups 9 | . . 9 Power 2 | . . 2 Propulsion 1 | . . 1 Utility 3 | . . 3 Weapon 3 | . . 3 Tool/Special . | . . . Average Slot Usage (%) 94 | . 97 93 Engine 13 | . 14 13 Treads 27 | . 28 26 Device 12 | . 14 11 Storage 13 | . 13 13 Energy Gun 13 | . 26 9 Energy Cannon 10 | . . 13 Peak Build Rating 21 | 7 7 21 Average Rating 10 | 5 6 11 On Entrance 4 | . 7 7 Avg Prop Armor Cover (%) . | . . . Naked Turns . | . . . Heaviest Build 42 | 14 29 42 Greatest Support 40 | 40 40 40 Greatest Overweight (x) 1 | . . 1 Average Overweight (x) . | . . . Largest Inventory Capacity 15 | 8 15 15 Average Capacity 13 | 6 10 15 Most Carried 15 | 1 3 15 Average Carried 6 | . 1 8 Final Capacity 15 | 8 15 15 Final Carried 13 | 1 3 13 Class Distribution -------------------- 100% | Mutant Dominant Class ---------------- Mutant | -10/Materials Mutant | -10/Subcaves Resources | -11 -10 -10 ----------- Run | Yrd Mat Sub Matter Collected 440 | 195 95 150 Remotely . | . . . Salvage Created 645 | 27 137 481 Parts 49 | 3 6 40 Haulers Intercepted 1 | . 1 . Recyclers Shooed 2 | . 2 . Parts Field Recycled . | . . . Retrieved Matter . | . . . Parts Self-Destructed 20 | . . 20 Prevented . | . . . Parts Restored . | . . . Kills | -11 -10 -10 ------- Run | Yrd Mat Sub Combat Hostiles Destroyed 13 | . . 13 Guns 3 | . . 3 Cannons 10 | . . 10 Classes Destroyed 6 | 1 2 3 Tunneler 1 | 1 . . Hauler 1 | . 1 . Recycler 1 | . 1 . Swarmer 3 | . . 3 Grunt 2 | . . 2 Subdweller 8 | . . 8 Best Kill Streak 3 | 1 1 3 Combat Bots Only 3 | . . 3 Max Kills in Single Turn 1 | 1 1 1 Gunslinging . | . . . Exploded . | . . . Melee . | . . . Uniques/NPCs Destroyed . | . . . Combat | -11 -10 -10 -------- Run | Yrd Mat Sub Hostile Shots Fired 105 | . . 105 Missed 31 | . . 31 Hits 74 | . . 74 Projectile 74 | . . 74 AOE 4 | . . 4 Critical Strikes 1 | . . 1 Damage Taken 1015 | . 30 985 Core 253 | . . 253 Absorbed by Shields . | . . . Core Remaining (%) 100 | 100 . . Volleys Fired 53 | 1 9 43 Largest 2 | 2 2 2 Hottest 160 | 80 80 160 Shots Fired 74 | 2 11 61 Gun 28 | 2 11 15 Cannon 45 | . . 45 Launcher 1 | . . 1 Special . | . . . Kinetic 7 | . . 7 Thermal 58 | 1 9 48 Explosive 1 | . . 1 Electromagnetic 8 | 1 2 5 Robot Hit Streak 11 | 1 4 11 Robot Miss Streak 3 | . 3 3 Penetration Max . | . . . Secondary Targets . | . . . Shots Hit Robots 42 | 1 6 35 Core Hits 19 | 1 3 15 Critical Kills . | . . . Critical Parts Destroyed . | . . . Critical Strikes 1 | . 1 . Corrupt 1 | . 1 . Melee Attacks . | . . . Impact . | . . . Slashing . | . . . Piercing . | . . . Sneak Attacks . | . . . Combat Hostiles . | . . . Follow-up Attacks . | . . . Damage Inflicted 1291 | 15 111 1165 Guns 180 | 15 74 91 Cannons 1074 | . . 1074 Explosions 37 | . 37 . Melee . | . . . Ramming . | . . . Kinetic 58 | . . 58 Thermal 1177 | . 81 1096 Explosive . | . . . Electromagnetic 56 | 15 30 11 Impact . | . . . Slashing . | . . . Piercing . | . . . Highest Corruption . | . . . Average Corruption . | . . . Corruption Purged . | . . . Corruption Blocked . | . . . Overload Shots . | . . . Overflow Damage . | . . . Projectiles . | . . . Explosions . | . . . Melee . | . . . Knockbacks . | . . . Impact . | . . . Kinetic . | . . . Secondary . | . . . Self-Inflicted Damage 30 | . 30 . Shots 1 | . 1 . Rammed . | . . . Targets Rammed . | . . . Kicked . | . . . Crushed . | . . . Highest Temperature 144 | 18 48 144 Average Temperature 36 | 12 30 39 Received Heat Transfer 264 | . . 264 Siege Activations . | . . . Martial Activations . | . . . Shielding Activations . | . . . Robots Disrupted . | . . . Combat Hostiles . | . . . Robots Corrupted . | . . . Combat Hostiles . | . . . Parts Fried . | . . . Impact Corruptions . | . . . Robots Melted . | . . . Combat Hostiles . | . . . Parts Melted . | . . . Heat Transferred 644 | . 150 494 Parts Sabotaged . | . . . Parts Stolen . | . . . Parts Stripped . | . . . Power Chain Reactions 1 | . 1 . Alert | -11 -10 -10 ------- Run | Yrd Mat Sub Maximum Alert Level . | . . . Low Security (%) 100 | 100 100 . Level 1 . | . . . Level 2 . | . . . Level 3 . | . . . Level 4 . | . . . Level 5 . | . . . High Security . | . . . Max Security . | . . . Peak Influence 12 | 5 12 . Initial . | . . . Average . | 1 . . Influence Increases 177 | 5 22 150 Destroy 0b10 Robot/C 100 | . . 100 Destroy 0b10 Robot/NC 15 | 5 10 . Destroy Leader 22 | . 2 20 Successful Hack 5 | . 5 . Destroy Structure 5 | . 5 . Lose Combat Pursuer 30 | . . 30 Influence Decreases 115 | 5 22 88 Time Decay 105 | 5 22 78 Lost Part 10 | . . 10 Squads Dispatched 1 | . 1 . Investigation 1 | . 1 . Extermination . | . . . Reinforcement . | . . . Assault . | . . . Garrison . | . . . Intercept . | . . . Searches Triggered . | . . . Construction Impeded . | . . . Haulers Reinforced . | . . . Active Scanning Responses . | . . . Cargo Convoy Interrupts . | . . . Stealth | -11 -10 -10 --------- Run | Yrd Mat Sub Distress Signals . | . . . Communications Jammed . | . . . Distress Signals . | . . . Times Spotted 16 | . 1 15 Peak Tracking Total 3 | . 2 3 Tactical Retreats 1 | . . 1 Traps | -11 -10 -10 ------- Run | Yrd Mat Sub Traps Triggered 1 | . . 1 Indirectly . | . . . Trap Hack Attempts . | . . . Triggered . | . . . Disarmed . | . . . Reprogrammed . | . . . Reused . | . . . Traps Extracted . | . . . Installed . | . . . Triggered . | . . . Machines | -11 -10 -10 ---------- Run | Yrd Mat Sub Machines Disabled 1 | . . 1 Max in Single Turn 1 | . . 1 Machines Repaired . | . . . Machines Dismantled . | . . . Machines Sabotaged . | . . . Overloaded Fab Kills . | . . . Hacking | -11 -10 -10 --------- Run | Yrd Mat Sub Machines Accessed 4 | . 2 2 Terminals 2 | . 2 . Fabricators . | . . . Repair Stations . | . . . Recycling Units . | . . . Scanalyzers . | . . . Garrison Access . | . . . Total Hacks 18 | . 5 13 Successful 16 | . 3 13 Failed 2 | . 2 . Catastrophic . | . . . Database Lockouts . | . . . Manual 5 | . 5 . Terminals 5 | . 5 . Fabricators . | . . . Repair Stations . | . . . Recycling Units . | . . . Scanalyzers . | . . . Garrison Access . | . . . Terminal Hacks 13 | . . 13 Record 12 | . . 12 Proto ID Catalog 1 | . . 1 Fabricator Hacks . | . . . Repair Station Hacks . | . . . Recycling Unit Hacks . | . . . Scanalyzer . | . . . Garrison Access Hacks . | . . . Unauthorized Hacks 3 | . 3 . Terminals 3 | . 3 . Botnet 1 | . 1 . Skim 2 | . 2 . Fabricators . | . . . Repair Stations . | . . . Recycling Units . | . . . Scanalyzers . | . . . Garrison Access . | . . . Data Cores Recovered . | . . . Used . | . . . Hacking Detections 2 | . 2 . Full Trace Events 1 | . 1 . Feedback Events . | . . . Feedback Blocked . | . . . Robot Schematics Acquired . | . . . Robots Built . | . . . Authchips . | . . . Time . | . . . Total Robot Build Rating . | . . . Part Schematics Acquired . | . . . Parts Built . | . . . Authchips . | . . . Time . | . . . Total Part Build Rating . | . . . Part Studies Acquired . | . . . Parts Repaired . | . . . Time . | . . . Parts Recycled . | . . . Recycled Matter . | . . . Retrieved Matter . | . . . Retrieved Components . | . . . Parts Scanalyzed . | . . . Part Schematics Acquired . | . . . Parts Damaged . | . . . Bothacking | -11 -10 -10 ------------ Run | Yrd Mat Sub Used RIF Installer . | . . . Robots Hacked . | . . . Non-combat . | . . . Combat . | . . . Robot Hacks Applied . | . . . Relay Couplers Released . | . . . Fabnet Peak Effective % . | . . . Robots Rewired . | . . . Allies Hacked . | . . . Hacks Repelled . | . . . Allies | -11 -10 -10 -------- Run | Yrd Mat Sub Total Allies . | . . . Largest Group . | . . . Highest-Rated Group . | . . . Highest-Rated Ally . | . . . Total Orders . | . . . Ally Attacks . | . . . Total Damage . | . . . Kills . | . . . Allies Corrupted . | . . . Allies Melted . | . . . Intel | -11 -10 -10 ------- Run | Yrd Mat Sub Active Infowar (turns) 1744 | 30 446 1268 Seismic 1744 | 30 446 1268 Robot Analysis Total . | . . . Derelict Logs Recovered . | . . . Drone Launches . | . . . Drone Recoveries . | . . . Exploration | -11 -10 -10 ------------- Run | Yrd Mat Sub Turns Passed 1987 | 80 446 1461 Spaces Moved 980 | 44 235 701 Core 3 | 3 . . Treads 965 | 41 235 689 Legs . | . . . Wheels 12 | . . 12 Hover . | . . . Flight . | . . . Fastest Speed 50 | 50 160 110 Average Speed 176 | 152 160 183 Slowest Speed 250 | 160 160 250 Overloaded Moves . | . . . Propulsion Burnouts . | . . . Robots Hopped . | . . . Potential Cave-ins . | . . . Cave-ins Triggered . | . . . Exploration Rate (%) 26 | 3 36 39 Regions Visited 2 Branch Regions 1 Pre-discovered Areas 1 | . . 1 Known Exits Taken . | . . . Unknown Exits Taken 2 | 1 1 . Scrap Searched 7 | . . 7 Spaces Dug 1 | . . 1 Terrain Destroyed 11 | . 4 7 Melee . | . . . Projectile 3 | . . 3 AOE 8 | . 4 4 Terrain Rammed . | . . . Walls Destroyed . | . . . Machines Disabled . | . . . Actions | -11 -10 -10 --------- Run | Yrd Mat Sub Total 1167 | 52 295 820 Wait 79 | . 43 36 Move 978 | 43 234 701 Hop . | . . . Pick Up 16 | 1 2 13 Fast Attach 13 | 7 2 4 Attach 9 | . . 9 Detach 9 | . 1 8 Swap 2 | . 1 1 Drop 8 | . 3 5 Fire 53 | 1 9 43 Melee . | . . . Ram . | . . . Kick . | . . . Crush . | . . . Escape Stasis . | . . . Rewire . | . . . Trap . | . . . Miscellaneous . | . . . Route ------- -11/Scrapyard -10/Materials (discovered 2 exits: [*Min] / *Sub) -10/Subcaves (discovered 2 exits: [*Mat] / [*Rec]) History --------- Turn | Location | Event 6 | -11/Scrapyard | Discovered new exit (range 16) 81 | -11/Scrapyard | Entered Materials 128 | -10/Materials | Discovered new exit (range 11) 305 | -10/Materials | Build established: Mutant 512 | -10/Materials | Discovered new exit (range 5) 527 | -10/Materials | Entered Subcaves 668 | -10/Subcaves | Visited Clippyterm 672 | -10/Subcaves | Learned location of Extension (-4) 672 | -10/Subcaves | Learned Factory trap positions 1012 | -10/Subcaves | Visited 4L-MR0's lab 1039 | -10/Subcaves | Found Powered Cannon 1041 | -10/Subcaves | Attached Powered Cannon, gained temporary slot: Power 1139 | -10/Subcaves | Ambushed by Subdweller buried in earth 1195 | -10/Subcaves | Core integrity fell below 50% 1382 | -10/Subcaves | Core integrity fell below 20% 1668 | -10/Subcaves | A swath of the cavern ceiling suddenly collapsed 1747 | -10/Subcaves | Shifting Twisted Machinery released Sub. Laser 1750 | -10/Subcaves | Discovered new exit (range 7) 1755 | -10/Subcaves | Shifting Twisted Machinery released Sub. Optics 1972 | -10/Subcaves | Discovered new exit (range 12) 1988 | -10/Subcaves | Destroyed by Autobeam Turret with Autobeam Last Messages --------------- A swath of the cavern ceiling suddenly collapses. Sub. Laser falls loose from the Twisted Machinery. 01750_ EXIT=FOUND Sub. Optics falls loose from the Twisted Machinery. 01956_ G-47 Trooper destroyed. 01959_ Spk. Treads destroyed. 01959_ G-34 Mercenary destroyed. 01965_ Ion Engine fries itself beyond repair. 01966_ Particle Gun fries itself beyond repair. 01966_ Imp. Heat Sink fries itself beyond repair. 01966_ Acquired 25 matter. 01967_ Aluminum Leg fries itself beyond repair. 01970_ Heat Sink fries itself beyond repair. 01971_ Aluminum Leg fries itself beyond repair. 01972_ EXIT=FOUND 01982_ Acquired 10 matter. Map ----- +----------------------------------------------------+ | ????????????????# ### ###?##???????????????? | | ????????????????# #### #???????????????? | | ??????????????????# ## #???????????????? | | ??????????????????### #???????????????? | | ????????????????????### #???????????????? | | ??????????????????????# #####???????????????? | | ??????????????????????# ###???????????????????? | | ??????????????????????## #?????????????????????? | | ???????????????????????## #########?????????????? | | ????????????????????????# ## # #####?????????? | | ????????????????????????# ##????????? | | ????????????????????????### " ##???????? | | ??????????????????????????###"### #?###???? | | ???????????????????????????##"### ### #?# ##??? | | ???????????????????????????##"#?## #### ### ##?? | | ?????????????????????????###"###?###?# ## #?? | | ????????????????????????##"##"##?????# #?? | | ????????????????????????#""""""#????## #?? | | ????????????????????????#""#####????# ### ### | | ???????????????????#######""###?????# #?# # | | ????????????????????"""#####""#??#### ### | | ?????????????????????#" ;;#=#"#??#"## ## | | ??????????????# ????""#]&&;####??##" | | ???????????????# & "####% ##??????## | | ???????????????? "" ####&&#??????# ## | | ???????????????#" ?? ""!#@%#??????# ## ### | | ???????????????#???????#%%%#??????##########?# | | ???????????????????????##& #????????????????# ### | | ???????????????????????#; % ???????????????# #?? | | ???????????????????????# #??????????????# ##?? | | ???????????????????????# #??????????????# #???? | | ???????????????????????# #??????????????##????? | | ??????????????????????? ????????????????????? | | ??????????????????????? ????????????????????? | | ??????????????????????? ???????????????????? | | ?????????????????????? t t "???????????????????? | | ?????????????????????? " " "???????????????????? | | ??????????????????????""" """"???????????????????? | | ??????????????????????###<####???????????????????? | | ????????????????????????#;???????????????????????? | | ?????????????????????????#???????????????????????? | | ?????????????????????????????????????????????????? | | ?????????????????????????????????????????????????? | | ?????????????????????????????????????????????????? | | ?????????????????????????????????????????????????? | | ?????????????????????????????????????????????????? | | ?????????????????????????????????????????????????? | | ?????????????????????????????????????????????????? | | ?????????????????????????????????????????????????? | | ?????????????????????????????????????????????????? | +----------------------------------------------------+ Best States ------------- Heat Dissipation 25 Energy Generation 15 Energy Capacity 250 Matter Stores 300 Matter Capacity 300 Sight Range 16 Terrain Scan Density 10 Evasion (%) 40 Recoil Reduction 2 Item Schematics ----------------- None Robot Schematics ------------------ None Fabricated ------------ Nothing Repaired ---------- Nothing Studied --------- None Alien Tech Used ----------------- None Achievements -------------- None Challenges ------------ None Game ------ Seed QuantumPortableTerminator Manual? 0 Play Time 00:13:35 Cumulative 57.8 hours Start 2026.07.15 @ 13:18:00 End 2026.07.15 @ 13:28:19 Sessions 1 Manual Loads 0 Difficulty Rogue Special Mode None Game No. 63 Rogue 63 Adventurer 0 Explorer 0 Win Type - Total 1 Types 1/0/0/0/0/0/0/0/0/0 Lore% 51 Gallery% 40 Achievement% 37 Wizard Run 0 Options --------- Layout 1 ASCII 0 Keyboard 1 Movement Numpad Keybinds 1 Fullscreen 2 Font 24/Smallcaps Map View 50x40 Zoom Use 0% Tactical HUD 1 Map Filters NONE Filters NONE Steam 1 RUN: 1b02fd66-836c-47d0-acce-8e201ceafcfa